fUSD/lending_fUSD_20260322
["ID","MTS","AMOUNT","RATE_DAILY","PERIOD"]
[408762194,1774203054030,-600.0,0.00021002,2]
[408762196,1774203054043,-500.0,0.00021002,2]
[408762198,1774203054053,-500.0,0.00021002,2]
[408762200,1774203054062,-500.0,0.00021002,2]
[408762202,1774203054073,-12604.1,0.00021068,2]
[408762204,1774203054082,-413.0,0.00021094,2]
[408762206,1774203054091,-150.0,0.00021096,2]
[408762208,1774203054100,-151.5969,0.000211,2]
[408762211,1774203054111,-2085.01,0.000211,2]
[408762213,1774203054120,-556.466781,0.000211,2]
[408762215,1774203054129,-556.466781,0.000211,2]
[408762217,1774203054139,-556.466781,0.000211,2]
[408762219,1774203054148,-556.466781,0.000211,2]
[408762221,1774203054156,-566.548979,0.000211,2]
[408762223,1774203054166,-566.548979,0.000211,2]
[408762225,1774203054175,-566.548979,0.000211,2]
[408762227,1774203054184,-566.548979,0.000211,2]
[408762229,1774203054194,-1564.79,0.0002111,30]
[408762231,1774203054204,-415.68,0.00021168,2]
[408762233,1774203054214,-1766.69,0.000212,2]
[408762235,1774203054224,-501.0,0.00021244,8]
[408762237,1774203054236,-2466.0,0.00021276,2]
[408762239,1774203054246,-415.0,0.00021276,2]
[408762241,1774203054255,-6008.0,0.00021276,2]
[408762243,1774203054264,-6424.04,0.0002137,2]
[408762245,1774203054274,-550.0,0.0002137,2]
[408762247,1774203054283,-272.82688778,0.0002137,2]
[408762250,1774203054293,-550.0,0.0002137,2]
[408762252,1774203054302,-15800.93211783,0.00021406,2]
[408762254,1774203054311,-415.69135969,0.00021509,2]
[408762256,1774203054322,-500.0,0.00021525,2]
[408762258,1774203054334,-150.0,0.00021617,2]
[408762260,1774203054343,-150.0,0.00021617,2]
[408762262,1774203054352,-150.097,0.00021617,2]
[408762264,1774203054362,-150.0,0.00021617,2]
[408762266,1774203054371,-150.147,0.00021617,2]
[408762268,1774203054381,-276.495,0.00021617,2]
[408762270,1774203054390,-150.064,0.00021617,2]
[408762272,1774203054399,-150.0,0.00021617,2]
[408762273,1774203054410,-150.0,0.00021617,2]
[408762275,1774203054419,-150.114,0.00021617,2]
[408762278,1774203054429,-150.0,0.00021617,2]
[408762280,1774203054438,-150.0,0.00021617,2]
[408762282,1774203054447,-3514.0,0.00021617,2]
[408762284,1774203054456,-1061.859,0.00021617,2]
[408762286,1774203054465,-621.0,0.00021617,2]
[408762288,1774203054474,-1345.0,0.00021617,2]
[408762290,1774203054483,-150.0,0.00021617,2]
[408762292,1774203054492,-924.0,0.00021617,2]
[408762294,1774203054502,-1215.0,0.00021617,2]
[408762296,1774203054511,-151.0,0.00021617,2]
[408762298,1774203054521,-151.0,0.00021617,2]
[408762300,1774203054531,-151.0,0.00021617,2]
[408762302,1774203054540,-151.0,0.00021617,2]
[408762304,1774203054549,-151.0,0.00021617,2]
[408762306,1774203054558,-271.812456,0.00021617,2]
[408762308,1774203054567,-271.812456,0.00021617,2]
[408762310,1774203054576,-151.0,0.00021617,2]
[408762312,1774203054585,-271.812456,0.00021617,2]
[408762314,1774203054594,-271.812456,0.00021617,2]
[408762316,1774203054603,-475.976313,0.00021617,2]
[408762318,1774203054612,-475.976313,0.00021617,2]
[408762320,1774203054621,-475.976313,0.00021617,2]
[408762322,1774203054630,-475.976313,0.00021617,2]
[408762324,1774203054639,-151.0,0.00021767,2]
[408762326,1774203054650,-49938.11760255,0.00021858,2]
[408762328,1774203054659,-151.0,0.00021915,2]
[408762330,1774203054668,-5000.0,0.00021918,2]
[408762332,1774203054677,-151.0,0.00021918,2]
[408762334,1774203054687,-151.0,0.00021918,2]
[408762336,1774203054696,-152.991552,0.00021918,2]
[408762338,1774203054706,-152.991552,0.00021918,2]
[408762340,1774203054715,-152.991552,0.00021918,2]
[408762342,1774203054724,-152.991552,0.00021918,2]
[408762344,1774203054734,-151.0,0.00021918,2]
[408762346,1774203054743,-151.0,0.00021918,2]
[408762348,1774203054753,-640.198155,0.00021918,2]
[408762350,1774203054763,-640.198155,0.00021918,2]
[408762352,1774203054772,-640.198155,0.00021918,2]
[408762354,1774203054781,-640.198155,0.00021918,2]
[408762356,1774203054791,-640.198155,0.00021918,2]
[408762358,1774203054800,-640.198155,0.00021918,2]
[408762360,1774203054810,-640.198155,0.00021918,2]
[408762362,1774203054819,-640.198155,0.00021918,2]
[408762365,1774203054829,-640.198155,0.00021918,2]
[408762367,1774203054839,-640.198155,0.00021918,2]
[408762369,1774203054849,-640.198155,0.00021918,2]
[408762370,1774203054859,-640.198155,0.00021918,2]
[408762372,1774203054868,-3055.64,0.00021918,2]
[408762375,1774203054878,-500.0,0.00021918,2]
[408762376,1774203054888,-650.0,0.00021918,2]
[408762379,1774203054898,-650.0,0.00021918,2]
[408762381,1774203054907,-150.0,0.00021918,2]
[408762383,1774203054917,-150.0,0.00021918,2]
[408762385,1774203054926,-235.39886034,0.00021918,2]
[408762387,1774203054935,-500.0,0.00021918,2]
[408762389,1774203054944,-500.0,0.00021918,2]
[408762391,1774203054953,-500.0,0.00021918,2]
[408762393,1774203054962,-215.81848229,0.00021918,2]
[408762395,1774203054972,-150.0,0.00021918,2]
[408762397,1774203054981,-1000.0,0.00021961,2]
[408762399,1774203054991,-1000.0,0.00021961,2]
[408762401,1774203054999,-506.7,0.00021995,2]
[408762403,1774203055010,-500.0,0.00021999,2]
[408762405,1774203055019,-500.0,0.00022,2]
[408762407,1774203055028,-600.0,0.00022,2]
[408762409,1774203055037,-500.0,0.00022,2]
[408762411,1774203055045,-500.0,0.00022,2]
[408762413,1774203055054,-226.78322434,0.00022,2]
[408762415,1774203055063,-500.0,0.00022,2]
[408762417,1774203055072,-600.0,0.00022,2]
[408762419,1774203055081,-500.0,0.00022,2]
[408762421,1774203055091,-500.0,0.00022,2]
[408762423,1774203055100,-500.0,0.00022,2]
[408762425,1774203055109,-600.0,0.00022,2]
[408762427,1774203055118,-500.0,0.00022,2]
[408762429,1774203055129,-500.0,0.00022,2]
[408762431,1774203055138,-500.0,0.00022,2]
[408762433,1774203055147,-600.0,0.00022,2]
[408762435,1774203055156,-500.0,0.00022,2]
[408762437,1774203055165,-500.0,0.00022,2]
[408762439,1774203055174,-600.0,0.00022,2]
[408762441,1774203055183,-500.0,0.00022,2]
[408762443,1774203055193,-500.0,0.00022,2]
[408762445,1774203055202,-600.0,0.00022,2]
[408762447,1774203055212,-500.0,0.00022,2]
[408762449,1774203055221,-500.0,0.00022,2]
[408762452,1774203055231,-600.0,0.00022,2]
[408762453,1774203055240,-500.0,0.00022,2]
[408762456,1774203055249,-500.0,0.00022,2]
[408762458,1774203055259,-500.0,0.00022,2]
[408762460,1774203055268,-600.0,0.00022,2]
[408762462,1774203055277,-500.0,0.00022,2]
[408762464,1774203055286,-600.0,0.00022,2]
[408762466,1774203055295,-500.0,0.00022,2]
[408762468,1774203055304,-500.0,0.00022,2]
[408762470,1774203055313,-800.0,0.00022,2]
[408762472,1774203055322,-600.0,0.00022,2]
[408762474,1774203055334,-500.0,0.00022,2]
[408762476,1774203055343,-750.61175549,0.00022,2]
[408762478,1774203055352,-800.0,0.00022,2]
[408762480,1774203055361,-500.0,0.00022,2]
[408762482,1774203055370,-600.0,0.00022,2]
[408762484,1774203055382,-800.0,0.00022,2]
[408762486,1774203055391,-500.0,0.00022,2]
[408762488,1774203055400,-600.0,0.00022,2]
[408762490,1774203055411,-800.0,0.00022,2]
[408762492,1774203055420,-500.0,0.00022,2]
[408762494,1774203055429,-600.0,0.00022,2]
[408762496,1774203055439,-500.0,0.00022,2]
[408762498,1774203055448,-800.0,0.00022,2]
[408762500,1774203055457,-500.0,0.00022,2]
[408762502,1774203055466,-600.0,0.00022,2]
[408762504,1774203055475,-500.0,0.00022,2]
[408762506,1774203055484,-800.0,0.00022,2]
[408762508,1774203055493,-500.0,0.00022,2]
[408762510,1774203055502,-500.0,0.00022,2]
[408762512,1774203055511,-373.07221866,0.00022,2]
[408762514,1774203055520,-800.0,0.00022,2]
[408762516,1774203055529,-500.0,0.00022,2]
[408762518,1774203055539,-500.0,0.00022,2]
[408762520,1774203055549,-800.0,0.00022,2]
[408762522,1774203055558,-500.0,0.00022,2]
[408762524,1774203055567,-500.0,0.00022,2]
[408762526,1774203055576,-800.0,0.00022,2]
[408762528,1774203055586,-980.92550253,0.00022,2]
[408762530,1774203055595,-500.0,0.00022,2]
[408762532,1774203055604,-500.0,0.00022,2]
[408762534,1774203055613,-800.0,0.00022,2]
[408762536,1774203055622,-500.0,0.00022,2]
[408762538,1774203055631,-800.0,0.00022,2]
[408762540,1774203055640,-500.0,0.00022,2]
[408762542,1774203055650,-800.0,0.00022,2]
[408762544,1774203055659,-700.0,0.00022,2]
[408762546,1774203055668,-500.0,0.00022,2]
[408762548,1774203055678,-800.0,0.00022,2]
[408762550,1774203055687,-700.0,0.00022,2]
[408762552,1774203055696,-500.0,0.00022,2]
[408762555,1774203055705,-500.0,0.00022,2]
[408762557,1774203055715,-700.0,0.00022,2]
[408762559,1774203055723,-700.0,0.00022,2]
[408762561,1774203055734,-500.0,0.00022,2]
[408762563,1774203055744,-700.0,0.00022,2]
[408762565,1774203055753,-500.0,0.00022,2]
[408762567,1774203055762,-500.0,0.00022,2]
[408762569,1774203055771,-500.0,0.00022,2]
[408762571,1774203055781,-700.0,0.00022,2]
[408762573,1774203055790,-700.0,0.00022,2]
[408762575,1774203055799,-500.0,0.00022,2]
[408762577,1774203055808,-346.07913606,0.00022,2]
[408762579,1774203055817,-500.0,0.00022,2]
[408762581,1774203055826,-924.80475936,0.00022,2]
[408762583,1774203055835,-700.0,0.00022,2]
[408762585,1774203055845,-700.0,0.00022,2]
[408762587,1774203055854,-500.0,0.00022,2]
[408762589,1774203055862,-700.0,0.00022,2]
[408762591,1774203055871,-700.0,0.00022,2]
[408762592,1774203055880,-500.0,0.00022,2]
[408762594,1774203055889,-700.0,0.00022,2]
[408762597,1774203055900,-700.0,0.00022,2]
[408762598,1774203055908,-500.0,0.00022,2]
[408762600,1774203055917,-700.0,0.00022,2]
[408762602,1774203055926,-700.0,0.00022,2]
[408762604,1774203055935,-500.0,0.00022,2]
[408762606,1774203055944,-700.0,0.00022,2]
[408762608,1774203055952,-700.0,0.00022,2]
[408762610,1774203055961,-500.0,0.00022,2]
[408762612,1774203055970,-700.0,0.00022,2]
[408762614,1774203055979,-700.0,0.00022,2]
[408762616,1774203055988,-500.0,0.00022,2]
[408762618,1774203055997,-700.0,0.00022,2]
[408762620,1774203056006,-700.0,0.00022,2]
[408762622,1774203056015,-700.0,0.00022,2]
[408762624,1774203056024,-700.0,0.00022,2]
[408762626,1774203056033,-700.0,0.00022,2]
[408762628,1774203056042,-700.0,0.00022,2]
[408762630,1774203056051,-500.0,0.00022,2]
[408762632,1774203056060,-700.0,0.00022,2]
[408762634,1774203056070,-500.0,0.00022,2]
[408762636,1774203056081,-700.0,0.00022,2]
[408762638,1774203056091,-500.0,0.00022,2]
[408762640,1774203056100,-700.0,0.00022,2]
[408762642,1774203056109,-700.0,0.00022,2]
[408762644,1774203056118,-700.0,0.00022,2]
[408762646,1774203056127,-10439.28988274,0.00022,7]
[408762649,1774203056146,-2866.33508686,0.00022,7]
[408768059,1774203717090,171.25,8.765e-05,2]
[408768066,1774204232195,-1058.89640059,0.00010524,2]
[408768067,1774204232209,-119.58964041,0.00010524,2]
[408768068,1774204232227,-500.0,0.00010577,2]
[408768069,1774204232242,-250.0,0.00010755,2]
[408768070,1774204232255,-166.66,0.00010788,2]
[408768071,1774204232265,-52.17750128,0.00010829,2]
[408768072,1774204232280,-247.82249872,0.00010829,2]
[408768073,1774204232291,-70.93345409,0.00010829,2]
[408768074,1774204232304,-1129.06654591,0.00010829,2]
[408768075,1774204232323,-300.0,0.00010829,2]
[408768077,1774204232333,-500.0,0.0001083,2]
[408768079,1774204232342,-500.0,0.0001083,2]
[408768081,1774204232351,-87.94596978,0.0001083,2]
[408768083,1774204232362,-412.05403022,0.0001083,2]
[408768085,1774204232371,-500.0,0.0001083,2]
[408768087,1774204232380,-3876.70961174,0.00010831,2]
[408768089,1774204232395,-3091.18971951,0.00010831,2]
[408768092,1774204232405,-946.4836003,0.00010831,2]
[408768105,1774204238154,-405.99,0.00010831,2]
[408768107,1774204238210,-205.04706845,0.00010831,2]
[408768108,1774204238219,-259.26378307,0.00010837,2]
[408768109,1774204238230,-34.83585303,0.00010837,2]
[408768110,1774204238239,-10091.23,0.00010882,2]
[408768111,1774204238249,-150.0,0.00010959,2]
[408768112,1774204238258,-302.94865842,0.00010966,2]
[408768113,1774204238267,-500.0,0.00010973,2]
[408768114,1774204238276,-500.0,0.00010973,2]
[408768115,1774204238286,-500.0,0.00010973,2]
[408768116,1774204238295,-500.0,0.00010973,2]
[408768117,1774204238304,-500.0,0.00010973,2]
[408768118,1774204238314,-500.0,0.00010973,2]
[408768119,1774204238324,-500.25065648,0.00010973,2]
[408768120,1774204238334,-240.93560801,0.00010973,2]
[408768121,1774204238343,-501.38646377,0.00010973,2]
[408768122,1774204238353,-500.0,0.00010973,2]
[408768123,1774204238362,-448.24083087,0.00010973,2]
[408768124,1774204238372,-500.0,0.00010973,2]
[408768125,1774204238382,-150.0,0.00010975,2]
[408768126,1774204238391,-5100.0,0.00010976,2]
[408768127,1774204238400,-21413.83757362,0.00010976,2]
[408768128,1774204238426,-1343.82,0.00010976,2]
[408768129,1774204238455,-3971.51414421,0.00010976,2]
[408768185,1774204241155,-1555.17783652,0.00010976,2]
[408768186,1774204241174,-1471715.65044565,0.00010976,2]
[408768187,1774204241183,-5377.122,0.00011075,2]
[408768188,1774204241192,-319.589,0.00011075,2]
[408768189,1774204241201,-41946.65,0.00011076,2]
[408768190,1774204241210,-29999.99,0.00011076,2]
[408768191,1774204241219,-166.66,0.00011144,2]
[408768192,1774204241228,-200.0,0.00011253,2]
[408768193,1774204241238,-1852.42,0.00011253,2]
[408768194,1774204241247,-3389.31,0.00011253,2]
[408768195,1774204241256,-20054.16168857,0.00011471,2]
[408768196,1774204241265,-166.66,0.000115,2]
[408768197,1774204241275,-1000.0,0.00011521,2]
[408768198,1774204241285,-1000.0,0.00011521,2]
[408768199,1774204241294,-1000.0,0.00011521,2]
[408768200,1774204241305,-1000.0,0.00011521,2]
[408768201,1774204241314,-1000.0,0.00011521,2]
[408768202,1774204241323,-1000.0,0.00011521,2]
[408768203,1774204241332,-2500.0,0.00011547,2]
[408768204,1774204241341,-32984.9071,0.00011554,2]
[408768205,1774204241361,-1000.0,0.00011554,2]
[408768206,1774204241370,-223.32689719,0.0001157,2]
[408768207,1774204241380,-500.0,0.0001157,2]
[408768208,1774204241389,-167.6315957,0.0001157,2]
[408768209,1774204241398,-500.0,0.0001157,2]
[408768210,1774204241407,-500.0,0.0001157,2]
[408768211,1774204241416,-508.04419221,0.0001157,2]
[408768212,1774204241425,-500.0,0.0001157,2]
[408768213,1774204241435,-500.0,0.0001157,2]
[408768214,1774204241445,-500.0,0.0001157,2]
[408768215,1774204241454,-500.0,0.0001157,2]
[408768216,1774204241464,-500.0,0.0001157,2]
[408768217,1774204241473,-500.0,0.0001157,2]
[408768218,1774204241483,-500.0,0.0001157,2]
[408768219,1774204241492,-1170.8,0.00011572,2]
[408768220,1774204241501,-1062.32914221,0.00011573,2]
[408768221,1774204241510,-725.14022202,0.00011573,2]
[408768222,1774204241520,-20662.81822764,0.00011573,2]
[408768223,1774204241529,-10759.33737632,0.00011573,2]
[408768224,1774204241538,-195.0,0.00011635,2]
[408768225,1774204241549,-195.0,0.00011635,2]
[408768226,1774204241558,-195.0,0.00011635,2]
[408768227,1774204241567,-195.0,0.00011635,2]
[408768228,1774204241576,-195.0,0.00011635,2]
[408768229,1774204241586,-250.0,0.00011635,2]
[408768230,1774204241595,-500.0,0.00011647,2]
[408768231,1774204241605,-500.0,0.00011647,2]
[408768232,1774204241614,-500.0,0.00011647,2]
[408768233,1774204241624,-200.0,0.00011647,2]
[408768234,1774204241633,-500.0,0.00011647,2]
[408768235,1774204241642,-500.0,0.00011647,2]
[408768236,1774204241651,-500.0,0.00011647,2]
[408768237,1774204241661,-500.0,0.00011647,2]
[408768238,1774204241670,-500.0,0.00011647,2]
[408768239,1774204241679,-500.0,0.00011647,2]
[408768240,1774204241689,-500.0,0.00011647,2]
[408768241,1774204241699,-500.0,0.00011647,2]
[408768242,1774204241708,-500.0,0.00011647,2]
[408768243,1774204241718,-500.0,0.00011647,2]
[408768244,1774204241727,-500.0,0.00011647,2]
[408768245,1774204241736,-500.0,0.00011647,2]
[408768246,1774204241746,-151.0,0.00011647,2]
[408768247,1774204241755,-151.0,0.00011647,2]
[408768248,1774204241765,-151.0,0.00011647,2]
[408768249,1774204241780,-151.0,0.00011647,2]
[408768250,1774204241790,-151.0,0.00011647,2]
[408768251,1774204241800,-151.0,0.00011647,2]
[408768252,1774204241811,-151.0,0.00011647,2]
[408768253,1774204241820,-151.0,0.00011647,2]
[408768254,1774204241829,-151.0,0.00011647,2]
[408768255,1774204241839,-151.0,0.00011647,2]
[408768256,1774204241852,-151.0,0.00011647,2]
[408768257,1774204241861,-151.0,0.00011647,2]
[408768258,1774204241870,-151.0,0.00011647,2]
[408768259,1774204241880,-500.0,0.00011647,2]
[408768260,1774204241889,-151.0,0.00011647,2]
[408768261,1774204241900,-500.0,0.00011647,2]
[408768262,1774204241909,-500.0,0.00011647,2]
[408768263,1774204241918,-500.0,0.00011647,2]
[408768264,1774204241927,-500.0,0.00011647,2]
[408768265,1774204241936,-500.0,0.00011647,2]
[408768266,1774204241946,-500.0,0.00011647,2]
[408768267,1774204241955,-500.0,0.00011647,2]
[408768268,1774204241964,-500.0,0.00011647,2]
[408768269,1774204241974,-500.0,0.00011647,2]
[408768270,1774204241983,-500.0,0.00011647,2]
[408768271,1774204241993,-500.0,0.00011647,2]
[408768272,1774204242002,-500.0,0.00011647,2]
[408768273,1774204242012,-151.0,0.00011651,2]
[408768274,1774204242022,-151.0,0.00011651,2]
[408768275,1774204242031,-168.81671065,0.00011653,2]
[408768276,1774204242041,-500.0,0.00011653,2]
[408768277,1774204242052,-500.0,0.00011653,2]
[408768278,1774204242063,-500.0,0.00011653,2]
[408768279,1774204242072,-500.0,0.00011653,2]
[408768280,1774204242082,-500.0,0.00011653,2]
[408768281,1774204242092,-407.30769669,0.00011653,2]
[408768282,1774204242102,-529.56120383,0.00011653,2]
[408768283,1774204242111,-500.0,0.00011653,2]
[408768284,1774204242122,-1010.03678902,0.00011653,3]
[408768285,1774204242131,-500.0,0.00011673,2]
[408768286,1774204242141,-501.30450666,0.00011673,2]
[408768287,1774204242151,-500.0,0.00011673,2]
[408768288,1774204242161,-3500.0,0.000117,4]
[408768289,1774204242171,-7100.0,0.000118,4]
[408768290,1774204242181,-250.0,0.000118,2]
[408768291,1774204242190,-1170.8,0.00011846,2]
[408768292,1774204242199,-166.66,0.00011856,2]
[408768293,1774204242209,-10600.0,0.000119,4]
[408768294,1774204242219,-393.0,0.00011902,2]
[408768295,1774204242229,-420.0,0.00011902,2]
[408768296,1774204242239,-1680.0,0.00011912,2]
[408768297,1774204242249,-500.0,0.00011921,2]
[408768298,1774204242259,-20054.16168852,0.00011963,2]
[408768299,1774204242269,-255.0,0.00012018,2]
[408768300,1774204242285,-20662.81822755,0.00012054,2]
[408768301,1774204242295,-1500.0,0.00012068,2]
[408768302,1774204242305,-1500.0,0.00012068,2]
[408768303,1774204242316,-1500.0,0.00012068,2]
[408768304,1774204242326,-1500.0,0.00012068,2]
[408768305,1774204242336,-1500.0,0.00012068,2]
[408768306,1774204242346,-1500.0,0.00012068,2]
[408768307,1774204242356,-1170.8,0.0001212,2]
[408768308,1774204242365,-270.2348629,0.00012167,2]
[408768309,1774204242375,-500.0,0.00012195,2]
[408768310,1774204242385,-200.0,0.00012195,2]
[408768311,1774204242396,-150.0,0.000122,2]
[408768312,1774204242406,-166.66,0.00012212,2]
[408768313,1774204242417,-503.38189689,0.00012221,2]
[408768314,1774204242427,-500.0,0.00012248,2]
[408768315,1774204242436,-1170.8,0.00012394,2]
[408768316,1774204242446,-20054.16168852,0.00012455,2]
[408768317,1774204242455,-500.0,0.00012469,2]
[408768318,1774204242466,-20662.81822755,0.00012535,2]
[408768319,1774204242476,-166.66,0.00012568,2]
[408768320,1774204242486,-1006.71870098,0.00012616,2]
[408768321,1774204242496,-165.1970891,0.00012616,2]
[408768322,1774204242506,-1020.9482015,0.00012616,2]
[408768323,1774204242516,-2000.0,0.00012616,2]
[408768324,1774204242527,-1698.21115659,0.00012616,2]
[408768325,1774204242537,-1000.0,0.00012616,2]
[408768326,1774204242547,-1170.8,0.00012668,2]
[408768327,1774204242557,-500.0,0.00012743,2]
[408768328,1774204242567,-200.0,0.00012743,2]
[408768329,1774204242577,-1170.8,0.00012942,2]
[408768330,1774204242587,-20054.16168852,0.00012947,2]
[408768331,1774204242597,-174.24,0.00012982,2]
[408768332,1774204242607,-250.0,0.00013,2]
[408768333,1774204242617,-5642.82862896,0.00013,2]
[408768334,1774204242627,-20662.81822755,0.00013015,2]
[408768335,1774204242636,-500.0,0.00013017,2]
[408768336,1774204242646,-3171.13653461,0.0001305,2]
[408768337,1774204242656,-587.0,0.00013081,2]
[408768338,1774204242666,-160.0,0.00013086,2]
[408768339,1774204242676,-979.16666667,0.00013086,2]
[408768340,1774204242686,-160.0,0.00013086,2]
[408768341,1774204242697,-160.0,0.00013086,2]
[408768342,1774204242707,-2351.0,0.00013103,2]
[408768343,1774204242717,-171.25,0.00013148,2]
[408768344,1774204242727,-433.0,0.00013159,2]
[408768345,1774204242737,-2500.0,0.00013164,2]
[408768346,1774204242748,-1170.8,0.00013216,2]
[408768347,1774204242758,-500.0,0.00013291,2]
[408768348,1774204242768,-200.0,0.00013291,2]
[408768349,1774204242781,-3240.0,0.00013425,2]
[408768350,1774204242791,-20054.16168852,0.00013439,2]
[408768351,1774204242801,-10759.33737629,0.00013463,2]
[408768352,1774204242814,-1170.83502245,0.0001349,2]
[408768353,1774204242825,-20662.81822755,0.00013496,2]
[408768354,1774204242835,-155.1692,0.000135,2]
[408768355,1774204242847,-1000.0,0.000135,2]
[408768356,1774204242857,-500.0,0.00013565,2]
[408768357,1774204242867,-500.0,0.00013698,2]
[408768358,1774204242878,-500.0,0.00013698,2]
[408768359,1774204242887,-159.34766407,0.00013698,2]
[408768360,1774204242897,-500.0,0.00013698,2]
[408768361,1774204242908,-500.0,0.00013698,2]
[408768362,1774204242918,-500.0,0.00013698,2]
[408768363,1774204242928,-500.0,0.00013698,2]
[408768364,1774204242938,-500.0,0.00013698,2]
[408768365,1774204242948,-500.0,0.00013698,2]
[408768367,1774204242958,-500.0,0.00013698,2]
[408768368,1774204242967,-500.0,0.00013698,2]
[408768369,1774204242977,-500.0,0.00013698,2]
[408768370,1774204242986,-500.0,0.00013698,2]
[408768371,1774204242996,-500.0,0.00013698,2]
[408768372,1774204243007,-500.0,0.00013698,2]
[408768373,1774204243017,-500.0,0.00013698,2]
[408768374,1774204243027,-500.0,0.00013698,2]
[408768375,1774204243036,-500.0,0.00013698,2]
[408768376,1774204243046,-350.43176373,0.00013698,2]
[408768377,1774204243057,-500.0,0.00013698,2]
[408768378,1774204243066,-500.0,0.00013698,2]
[408768379,1774204243076,-500.0,0.00013698,2]
[408768380,1774204243087,-500.0,0.00013698,2]
[408768381,1774204243096,-500.0,0.00013698,2]
[408768382,1774204243106,-500.0,0.00013698,2]
[408768383,1774204243116,-500.0,0.00013698,2]
[408768384,1774204243126,-500.0,0.00013698,2]
[408768385,1774204243136,-500.0,0.00013698,2]
[408768387,1774204243146,-500.0,0.00013698,2]
[408768388,1774204243155,-500.0,0.00013698,2]
[408768390,1774204243164,-500.0,0.00013698,2]
[408768392,1774204243174,-500.0,0.00013698,2]
[408768393,1774204243184,-500.0,0.00013698,2]
[408768394,1774204243193,-500.0,0.00013698,2]
[408768395,1774204243203,-500.0,0.00013698,2]
[408768396,1774204243218,-500.0,0.00013698,2]
[408768397,1774204243228,-289.40790196,0.00013698,2]
[408768398,1774204243238,-1606.46,0.00013698,2]
[408768399,1774204243247,-1606.46,0.00013698,2]
[408768400,1774204243258,-1606.46,0.00013698,2]
[408768401,1774204243267,-1606.46,0.00013698,2]
[408768402,1774204243277,-1606.46,0.00013698,2]
[408768403,1774204243286,-1606.46,0.00013698,2]
[408768404,1774204243296,-500.0,0.00013698,2]
[408768405,1774204243306,-500.0,0.00013698,2]
[408768406,1774204243316,-183.92514318,0.00013698,2]
[408768407,1774204243326,-500.0,0.00013698,2]
[408768408,1774204243335,-500.0,0.00013698,2]
[408768409,1774204243344,-500.0,0.00013698,2]
[408768410,1774204243354,-500.0,0.00013698,2]
[408768411,1774204243364,-500.0,0.00013698,2]
[408768412,1774204243373,-500.0,0.00013698,2]
[408768413,1774204243382,-500.0,0.00013698,2]
[408768414,1774204243392,-500.0,0.00013698,2]
[408768415,1774204243401,-500.0,0.00013698,2]
[408768416,1774204243410,-500.0,0.00013698,2]
[408768417,1774204243420,-521.33537664,0.00013698,2]
[408768418,1774204243429,-500.0,0.00013698,2]
[408768419,1774204243438,-500.0,0.00013698,2]